[Event "*** SCC Grand Prix: Titled Tuesday Blitz"]
[Site "Chess.com"]
[Date "2020.07.14"]
[Round "4"]
[White "JoakimVonAnd"]
[Black "KyrgyzFighter"]
[Result "1-0"]
[WhiteElo "2449"]
[BlackElo "2287"]
[TimeControl "180+1"]
[EndTime "10:41:37 PDT"]
[Termination "JoakimVonAnd won by checkmate"]

1. d4 {[%clk 0:03:00.9]} 1... d6 {[%clk 0:02:59.3]} 2. Nf3 {[%clk 0:02:59.1]}
2... Nf6 {[%clk 0:02:57.3]} 3. Bf4 {[%clk 0:02:58.5]} 3... Nbd7 {[%clk
0:02:56.8]} 4. e3 {[%clk 0:02:57.7]} 4... c6 {[%clk 0:02:54.1]} 5. Be2 {[%clk
0:02:53.5]} 5... Qc7 {[%clk 0:02:54.1]} 6. h3 {[%clk 0:02:52.4]} 6... e5 {[%clk
0:02:53.9]} 7. dxe5 {[%clk 0:02:52.5]} 7... dxe5 {[%clk 0:02:54.8]} 8. Bh2
{[%clk 0:02:53.1]} 8... Be7 {[%clk 0:02:52.3]} 9. O-O {[%clk 0:02:51.9]} 9...
O-O {[%clk 0:02:52.2]} 10. Nbd2 {[%clk 0:02:52]} 10... b5 {[%clk 0:02:51.1]} 11.
a4 {[%clk 0:02:50.9]} 11... bxa4 {[%clk 0:02:22.1]} 12. Nc4 {[%clk 0:02:47.7]}
12... Rd8 {[%clk 0:02:13.3]} 13. Qe1 {[%clk 0:02:46.7]} 13... Qb7 {[%clk
0:02:01.1]} 14. Nfxe5 {[%clk 0:02:42.3]} 14... Nxe5 {[%clk 0:02:01.1]} 15. Bxe5
{[%clk 0:02:42.9]} 15... Be6 {[%clk 0:02:01.7]} 16. Rxa4 {[%clk 0:02:38.5]}
16... Nd7 {[%clk 0:01:44.4]} 17. Bc3 {[%clk 0:02:29.6]} 17... Nc5 {[%clk
0:01:39.7]} 18. Ra1 {[%clk 0:02:25]} 18... Ne4 {[%clk 0:01:35.4]} 19. Na5 {[%clk
0:02:17.5]} 19... Qb6 {[%clk 0:01:29.9]} 20. Nc4 {[%clk 0:02:07]} 20... Bxc4
{[%clk 0:01:24.5]} 21. Bxc4 {[%clk 0:02:05.4]} 21... Nxc3 {[%clk 0:01:24.8]} 22.
Qxc3 {[%clk 0:02:03.1]} 22... Bf6 {[%clk 0:01:24.8]} 23. Qb3 {[%clk 0:01:56.7]}
23... Qxb3 {[%clk 0:01:24.5]} 24. cxb3 {[%clk 0:01:52.7]} 24... Bxb2 {[%clk
0:01:25.4]} 25. Ra6 {[%clk 0:01:51.4]} 25... Rd6 {[%clk 0:01:15.4]} 26. Rb1
{[%clk 0:01:49.1]} 26... Be5 {[%clk 0:01:12.8]} 27. Rc1 {[%clk 0:01:47.7]} 27...
c5 {[%clk 0:01:08.3]} 28. Ra5 {[%clk 0:01:44.3]} 28... Bb2 {[%clk 0:00:37.8]}
29. Rb1 {[%clk 0:01:37.8]} 29... Rd2 {[%clk 0:00:37.3]} 30. Rxc5 {[%clk
0:01:35.3]} 30... Re8 {[%clk 0:00:35.4]} 31. Rc7 {[%clk 0:01:31.8]} 31... Rf8
{[%clk 0:00:35.8]} 32. Rxa7 {[%clk 0:01:30.7]} 32... g6 {[%clk 0:00:35.2]} 33.
Ra2 {[%clk 0:01:23.2]} 33... Bc3 {[%clk 0:00:34.8]} 34. Rxd2 {[%clk 0:01:19.8]}
34... Bxd2 {[%clk 0:00:35.7]} 35. b4 {[%clk 0:01:20.3]} 35... Rb8 {[%clk
0:00:33.4]} 36. b5 {[%clk 0:01:19.9]} 36... Kf8 {[%clk 0:00:34.3]} 37. b6 {[%clk
0:01:19.7]} 37... Ba5 {[%clk 0:00:33.3]} 38. b7 {[%clk 0:01:19.6]} 38... Ke7
{[%clk 0:00:34.2]} 39. Bd5 {[%clk 0:01:19.1]} 39... f5 {[%clk 0:00:34.6]} 40.
Ra1 {[%clk 0:01:15.3]} 40... Bc7 {[%clk 0:00:34.3]} 41. Kf1 {[%clk 0:01:10.5]}
41... Kd6 {[%clk 0:00:34.1]} 42. Rd1 {[%clk 0:01:07.8]} 42... Ke5 {[%clk
0:00:33.8]} 43. Ke2 {[%clk 0:01:07.6]} 43... f4 {[%clk 0:00:32.7]} 44. exf4+
{[%clk 0:01:01.3]} 44... Kxf4 {[%clk 0:00:33.6]} 45. g3+ {[%clk 0:01:01.8]}
45... Kg5 {[%clk 0:00:33.2]} 46. Kf3 {[%clk 0:01:00.7]} 46... Rf8+ {[%clk
0:00:32.5]} 47. Kg2 {[%clk 0:01:00.7]} 47... Bb6 {[%clk 0:00:28.3]} 48. f4+
{[%clk 0:00:59.1]} 48... Kf6 {[%clk 0:00:26.2]} 49. Rb1 {[%clk 0:00:59.1]} 49...
Bc7 {[%clk 0:00:25.8]} 50. Rc1 {[%clk 0:00:59.2]} 50... Bb8 {[%clk 0:00:17]} 51.
Rc8 {[%clk 0:00:58.5]} 51... Ke7 {[%clk 0:00:17.9]} 52. Kf3 {[%clk 0:00:57.7]}
52... Rd8 {[%clk 0:00:16.5]} 53. Be4 {[%clk 0:00:53.4]} 53... Kd7 {[%clk
0:00:14.8]} 54. Rxd8+ {[%clk 0:00:52.3]} 54... Kxd8 {[%clk 0:00:15.7]} 55. h4
{[%clk 0:00:51.6]} 55... Ke7 {[%clk 0:00:16.6]} 56. Kg4 {[%clk 0:00:51.2]} 56...
Kf6 {[%clk 0:00:16.8]} 57. h5 {[%clk 0:00:50.6]} 57... Bc7 {[%clk 0:00:17]} 58.
hxg6 {[%clk 0:00:47]} 58... hxg6 {[%clk 0:00:17.9]} 59. Kf3 {[%clk 0:00:45.3]}
59... Bb8 {[%clk 0:00:17.4]} 60. g4 {[%clk 0:00:44.2]} 60... g5 {[%clk
0:00:16.4]} 61. fxg5+ {[%clk 0:00:40.8]} 61... Kxg5 {[%clk 0:00:17.3]} 62. Bf5
{[%clk 0:00:41.1]} 62... Bc7 {[%clk 0:00:17.2]} 63. Ke4 {[%clk 0:00:41.3]} 63...
Bb8 {[%clk 0:00:17.6]} 64. Kd5 {[%clk 0:00:41.6]} 64... Kf6 {[%clk 0:00:16]} 65.
Kc6 {[%clk 0:00:41.1]} 65... Ke7 {[%clk 0:00:16.6]} 66. g5 {[%clk 0:00:40.9]}
66... Be5 {[%clk 0:00:15.2]} 67. g6 {[%clk 0:00:40.5]} 67... Bb8 {[%clk
0:00:14.7]} 68. Bb1 {[%clk 0:00:37.6]} 68... Bf4 {[%clk 0:00:11.9]} 69. Ba2
{[%clk 0:00:35.3]} 69... Kf6 {[%clk 0:00:10.5]} 70. Bb1 {[%clk 0:00:30.3]} 70...
Ke7 {[%clk 0:00:10.6]} 71. Kd5 {[%clk 0:00:26.6]} 71... Bb8 {[%clk 0:00:09.1]}
72. Ke4 {[%clk 0:00:24.4]} 72... Kf6 {[%clk 0:00:09.1]} 73. Kf3 {[%clk
0:00:24.4]} 73... Bc7 {[%clk 0:00:08.8]} 74. Kg4 {[%clk 0:00:24.5]} 74... Bb8
{[%clk 0:00:08.9]} 75. Kh5 {[%clk 0:00:24.7]} 75... Bf4 {[%clk 0:00:09.3]} 76.
b8=Q {[%clk 0:00:12.9]} 76... Bxb8 {[%clk 0:00:08.8]} 77. Kh6 {[%clk 0:00:13.3]}
77... Be5 {[%clk 0:00:06.4]} 78. g7 {[%clk 0:00:11.8]} 78... Kf7 {[%clk
0:00:06.6]} 79. Ba2+ {[%clk 0:00:11.9]} 79... Ke7 {[%clk 0:00:06.6]} 80. g8=Q
{[%clk 0:00:11.5]} 80... Kd6 {[%clk 0:00:07.5]} 81. Qe6+ {[%clk 0:00:11.2]}
81... Kc7 {[%clk 0:00:08.4]} 82. Qxe5+ {[%clk 0:00:11.8]} 82... Kb6 {[%clk
0:00:09.1]} 83. Bg8 {[%clk 0:00:11]} 83... Kb7 {[%clk 0:00:10]} 84. Bh7 {[%clk
0:00:11.3]} 84... Ka6 {[%clk 0:00:10.6]} 85. Kg6 {[%clk 0:00:11.9]} 85... Kb6
{[%clk 0:00:10.9]} 86. Qd5 {[%clk 0:00:12]} 86... Ka6 {[%clk 0:00:11.8]} 87. Qc5
{[%clk 0:00:11.8]} 87... Kb7 {[%clk 0:00:11.8]} 88. Kf6 {[%clk 0:00:12]} 88...
Ka6 {[%clk 0:00:12.7]} 89. Ke6 {[%clk 0:00:11.9]} 89... Kb7 {[%clk 0:00:13.6]}
90. Kd6 {[%clk 0:00:12.1]} 90... Ka6 {[%clk 0:00:14.5]} 91. Qb4 {[%clk
0:00:12.2]} 91... Ka7 {[%clk 0:00:14.6]} 92. Kc7 {[%clk 0:00:12.8]} 92... Ka8
{[%clk 0:00:15.5]} 93. Qb8# {[%clk 0:00:12.7]} 1-0

[Event "*** SCC Grand Prix: Titled Tuesday Blitz"]
[Site "Chess.com"]
[Date "2020.07.14"]
[Round "4"]
[White "malakismayil"]
[Black "plumalka"]
[Result "1-0"]
[WhiteElo "2262"]
[BlackElo "2412"]
[TimeControl "180+1"]
[EndTime "10:41:59 PDT"]
[Termination "malakismayil won by resignation"]

1. e4 {[%clk 0:03:00.9]} 1... c5 {[%clk 0:02:58]} 2. Nf3 {[%clk 0:03:00.5]} 2...
d6 {[%clk 0:02:57.1]} 3. d4 {[%clk 0:03:00.4]} 3... Nf6 {[%clk 0:02:56.4]} 4.
Nc3 {[%clk 0:02:59.7]} 4... cxd4 {[%clk 0:02:56.2]} 5. Nxd4 {[%clk 0:03:00.6]}
5... Bd7 {[%clk 0:02:56.6]} 6. Bc4 {[%clk 0:02:59.3]} 6... g6 {[%clk 0:02:52.5]}
7. O-O {[%clk 0:02:58]} 7... Bg7 {[%clk 0:02:52.4]} 8. h3 {[%clk 0:02:55.6]}
8... O-O {[%clk 0:02:52.1]} 9. Bg5 {[%clk 0:02:53]} 9... a6 {[%clk 0:02:51.2]}
10. a3 {[%clk 0:02:52.1]} 10... b5 {[%clk 0:02:50.6]} 11. Bd5 {[%clk 0:02:47.6]}
11... Nxd5 {[%clk 0:02:47.6]} 12. Nxd5 {[%clk 0:02:48.5]} 12... f6 {[%clk
0:02:43]} 13. Be3 {[%clk 0:02:47.1]} 13... e6 {[%clk 0:02:38.1]} 14. Nc3 {[%clk
0:02:32.9]} 14... f5 {[%clk 0:02:38]} 15. exf5 {[%clk 0:02:19.3]} 15... gxf5
{[%clk 0:02:38.9]} 16. Nb3 {[%clk 0:02:17.7]} 16... Qe7 {[%clk 0:02:28.4]} 17.
f4 {[%clk 0:02:10.8]} 17... Nc6 {[%clk 0:02:24.1]} 18. Qd2 {[%clk 0:02:09.4]}
18... Rad8 {[%clk 0:02:23.3]} 19. Bb6 {[%clk 0:02:02.9]} 19... Bc8 {[%clk
0:02:14.6]} 20. Bxd8 {[%clk 0:02:00.6]} 20... Rxd8 {[%clk 0:02:15.5]} 21. Rad1
{[%clk 0:01:59.8]} 21... Bb7 {[%clk 0:02:15.2]} 22. Rfe1 {[%clk 0:01:58]} 22...
Qf7 {[%clk 0:02:09.9]} 23. Qe2 {[%clk 0:01:56.4]} 23... e5 {[%clk 0:02:06.1]}
24. Nd5 {[%clk 0:01:34.5]} 24... Ne7 {[%clk 0:01:56]} 25. Nxe7+ {[%clk
0:01:29.2]} 25... Qxe7 {[%clk 0:01:56.9]} 26. Nd4 {[%clk 0:00:52.2]} 26... Be4
{[%clk 0:01:53.2]} 27. Nf3 {[%clk 0:00:42.5]} 27... exf4 {[%clk 0:01:48.5]} 28.
c3 {[%clk 0:00:41.2]} 28... d5 {[%clk 0:01:43.2]} 29. Qd2 {[%clk 0:00:37]} 29...
Qc7 {[%clk 0:01:40.4]} 30. Ng5 {[%clk 0:00:34.2]} 30... Re8 {[%clk 0:01:35.5]}
31. Nxe4 {[%clk 0:00:33.1]} 31... dxe4 {[%clk 0:01:35.3]} 32. Qd5+ {[%clk
0:00:32.2]} 32... Kh8 {[%clk 0:01:24.1]} 33. Qxf5 {[%clk 0:00:31]} 33... e3
{[%clk 0:01:23.5]} 34. Rd7 {[%clk 0:00:30.2]} 34... Qb6 {[%clk 0:01:00.6]} 35.
Qxf4 {[%clk 0:00:25.3]} 35... e2+ {[%clk 0:00:45.5]} 36. Qf2 {[%clk 0:00:24]}
36... Qc6 {[%clk 0:00:34.4]} 37. Rd2 {[%clk 0:00:22]} 37... Bf8 {[%clk
0:00:33.3]} 38. Qd4+ {[%clk 0:00:15.4]} 38... Bg7 {[%clk 0:00:33.1]} 39. Qg4
{[%clk 0:00:13.6]} 39... Re4 {[%clk 0:00:30]} 40. Qf3 {[%clk 0:00:11.3]} 40...
Qc5+ {[%clk 0:00:21.7]} 41. Kh1 {[%clk 0:00:10.3]} 41... Re8 {[%clk 0:00:17.6]}
42. Rdxe2 {[%clk 0:00:09.9]} 42... Rf8 {[%clk 0:00:17.9]} 43. Qe3 {[%clk
0:00:10.2]} 43... Qf5 {[%clk 0:00:16.6]} 44. Qg3 {[%clk 0:00:09.4]} 44... Bh6
{[%clk 0:00:14.5]} 45. Qe5+ {[%clk 0:00:08]} 45... Qxe5 {[%clk 0:00:14.6]} 46.
Rxe5 {[%clk 0:00:08.9]} 46... Rf2 {[%clk 0:00:15.5]} 47. R5e2 {[%clk 0:00:09.4]}
47... Rf6 {[%clk 0:00:14.1]} 48. g3 {[%clk 0:00:09.8]} 48... Bf8 {[%clk
0:00:11.1]} 49. Kg2 {[%clk 0:00:10.2]} 49... Kg7 {[%clk 0:00:11.5]} 50. Rf1
{[%clk 0:00:10.2]} 50... Rd6 {[%clk 0:00:11.6]} 51. Ref2 {[%clk 0:00:10.4]}
51... Rd8 {[%clk 0:00:10.6]} 52. Rxf8 {[%clk 0:00:10.2]} 52... Rxf8 {[%clk
0:00:11.5]} 53. Rxf8 {[%clk 0:00:11.1]} 53... Kxf8 {[%clk 0:00:10.9]} 54. Kf3
{[%clk 0:00:11.7]} 54... Ke7 {[%clk 0:00:11.1]} 55. Ke4 {[%clk 0:00:11.5]} 55...
Kd6 {[%clk 0:00:10.9]} 56. g4 {[%clk 0:00:11.8]} 56... Kc5 {[%clk 0:00:11.4]}
57. Kd3 {[%clk 0:00:11.9]} 57... Kd5 {[%clk 0:00:11.3]} 58. h4 {[%clk
0:00:11.9]} 58... Ke5 {[%clk 0:00:11.8]} 59. Ke3 {[%clk 0:00:11.9]} 59... Kd5
{[%clk 0:00:11.7]} 60. b3 {[%clk 0:00:11.6]} 60... a5 {[%clk 0:00:11.6]} 61. Kf4
{[%clk 0:00:09.1]} 61... Ke6 {[%clk 0:00:11.4]} 62. g5 {[%clk 0:00:08.1]} 62...
Ke7 {[%clk 0:00:08.2]} 63. h5 {[%clk 0:00:07.8]} 63... Kf7 {[%clk 0:00:08.4]}
64. Kf5 {[%clk 0:00:08.2]} 64... Ke7 {[%clk 0:00:07.6]} 65. g6 {[%clk 0:00:08]}
65... hxg6+ {[%clk 0:00:07.6]} 66. Kxg6 {[%clk 0:00:08.9]} 66... Kf8 {[%clk
0:00:07.9]} 67. h6 {[%clk 0:00:07.8]} 67... Kg8 {[%clk 0:00:08.3]} 68. Kf6
{[%clk 0:00:06.7]} 68... Kh7 {[%clk 0:00:08.1]} 69. Ke5 {[%clk 0:00:06.9]} 69...
Kxh6 {[%clk 0:00:09]} 70. Kd5 {[%clk 0:00:07.3]} 70... b4 {[%clk 0:00:07.2]} 71.
cxb4 {[%clk 0:00:07.2]} 71... axb4 {[%clk 0:00:07.7]} 72. axb4 {[%clk
0:00:08.1]} 72... Kg7 {[%clk 0:00:06.5]} 73. Kc6 {[%clk 0:00:09]} 73... Kf7
{[%clk 0:00:05.8]} 74. b5 {[%clk 0:00:09.9]} 74... Ke6 {[%clk 0:00:06.4]} 75.
Kc7 {[%clk 0:00:10.8]} 75... Kd5 {[%clk 0:00:06.7]} 76. b6 {[%clk 0:00:11.7]}
76... Kd4 {[%clk 0:00:07.5]} 77. b7 {[%clk 0:00:12.6]} 77... Kc3 {[%clk
0:00:08.4]} 78. b8=Q {[%clk 0:00:13.5]} 78... Kb2 {[%clk 0:00:09.1]} 79. b4
{[%clk 0:00:13.8]} 1-0

[Event "*** SCC Grand Prix: Titled Tuesday Blitz"]
[Site "Chess.com"]
[Date "2020.07.14"]
[Round "4"]
[White "amintabatabaei"]
[Black "Angry_Twin"]
[Result "1-0"]
[WhiteElo "3019"]
[BlackElo "2764"]
[TimeControl "180+1"]
[EndTime "10:42:03 PDT"]
[Termination "amintabatabaei won on time"]

1. e4 {[%clk 0:03:00.9]} 1... c5 {[%clk 0:02:53.2]} 2. Nc3 {[%clk 0:03:00.9]}
2... d6 {[%clk 0:02:53.1]} 3. Nge2 {[%clk 0:03:01.1]} 3... a6 {[%clk 0:02:52.1]}
4. g3 {[%clk 0:02:58.8]} 4... e5 {[%clk 0:02:52.3]} 5. Bg2 {[%clk 0:02:55.6]}
5... g6 {[%clk 0:02:52.7]} 6. O-O {[%clk 0:02:55.3]} 6... Bg7 {[%clk 0:02:53.2]}
7. a3 {[%clk 0:02:53.8]} 7... Nc6 {[%clk 0:02:53.6]} 8. d3 {[%clk 0:02:54.2]}
8... Nge7 {[%clk 0:02:53.3]} 9. f4 {[%clk 0:02:52.5]} 9... O-O {[%clk
0:02:53.5]} 10. Be3 {[%clk 0:02:46.7]} 10... Nd4 {[%clk 0:02:52.9]} 11. Qd2
{[%clk 0:02:45.5]} 11... b5 {[%clk 0:02:49.1]} 12. Nd1 {[%clk 0:02:39.8]} 12...
Bg4 {[%clk 0:02:47.5]} 13. Nc1 {[%clk 0:02:39.9]} 13... Qd7 {[%clk 0:02:42.4]}
14. c3 {[%clk 0:02:39.6]} 14... Ndc6 {[%clk 0:02:42.5]} 15. Nf2 {[%clk
0:02:35.5]} 15... Be6 {[%clk 0:02:42.6]} 16. b4 {[%clk 0:02:34.1]} 16... c4
{[%clk 0:02:34.5]} 17. Rd1 {[%clk 0:02:26.1]} 17... cxd3 {[%clk 0:02:18.5]} 18.
Ncxd3 {[%clk 0:02:27]} 18... Qc7 {[%clk 0:02:16.6]} 19. a4 {[%clk 0:02:10.9]}
19... Bb3 {[%clk 0:02:03.2]} 20. Rdb1 {[%clk 0:02:06.9]} 20... Bxa4 {[%clk
0:01:57]} 21. Ra3 {[%clk 0:02:02.9]} 21... a5 {[%clk 0:01:52.7]} 22. Nb2 {[%clk
0:01:57.6]} 22... axb4 {[%clk 0:01:52.7]} 23. cxb4 {[%clk 0:01:58.5]} 23... Nd4
{[%clk 0:01:43.8]} 24. Nxa4 {[%clk 0:01:56.4]} 24... Rxa4 {[%clk 0:01:43.3]} 25.
Rxa4 {[%clk 0:01:46.3]} 25... bxa4 {[%clk 0:01:44.2]} 26. Nd3 {[%clk 0:01:45.7]}
26... Rb8 {[%clk 0:01:41.5]} 27. Bxd4 {[%clk 0:01:36]} 27... exd4 {[%clk
0:01:41.5]} 28. Rc1 {[%clk 0:01:36.6]} 28... Qb6 {[%clk 0:01:39.2]} 29. Qa2
{[%clk 0:01:34.9]} 29... Qb5 {[%clk 0:01:29.1]} 30. Bf1 {[%clk 0:01:33.8]} 30...
Qb7 {[%clk 0:01:05.7]} 31. Bg2 {[%clk 0:01:18.8]} 31... Qb5 {[%clk 0:01:05.5]}
32. Bf1 {[%clk 0:01:14.4]} 32... Qb7 {[%clk 0:01:05.5]} 33. Qxa4 {[%clk
0:01:00.5]} 33... Qxe4 {[%clk 0:01:03.6]} 34. Re1 {[%clk 0:01:00.8]} 34... Qb7
{[%clk 0:01:00.6]} 35. Bg2 {[%clk 0:01:01.2]} 35... Qc7 {[%clk 0:01:01]} 36. Rc1
{[%clk 0:01:00]} 36... Qd8 {[%clk 0:01:00.7]} 37. Qa7 {[%clk 0:00:55.2]} 37...
Bf6 {[%clk 0:00:47.6]} 38. Re1 {[%clk 0:00:45.2]} 38... Kg7 {[%clk 0:00:47]} 39.
Re2 {[%clk 0:00:39.9]} 39... Qf8 {[%clk 0:00:34.3]} 40. g4 {[%clk 0:00:39.3]}
40... h6 {[%clk 0:00:33.6]} 41. h4 {[%clk 0:00:38.9]} 41... Bxh4 {[%clk
0:00:32.4]} 42. Qxd4+ {[%clk 0:00:39.1]} 42... Bf6 {[%clk 0:00:32.9]} 43. Qxd6
{[%clk 0:00:36.8]} 43... Rd8 {[%clk 0:00:32.9]} 44. Qa6 {[%clk 0:00:37.4]} 44...
Nd5 {[%clk 0:00:29.4]} 45. Qc4 {[%clk 0:00:22.9]} 45... Nc3 {[%clk 0:00:28.5]}
46. Rd2 {[%clk 0:00:21]} 46... Qd6 {[%clk 0:00:28.2]} 47. g5 {[%clk 0:00:15.7]}
47... Bd4+ {[%clk 0:00:25.3]} 48. Kf1 {[%clk 0:00:12.9]} 48... hxg5 {[%clk
0:00:12.7]} 49. Ne5 {[%clk 0:00:13.3]} 49... Qf6 {[%clk 0:00:10.6]} 50. Rxd4
{[%clk 0:00:13]} 50... Rxd4 {[%clk 0:00:06.5]} 51. Qxd4 {[%clk 0:00:13.9]} 51...
Nb5 {[%clk 0:00:07]} 52. Qc5 {[%clk 0:00:13.9]} 52... Qxf4+ {[%clk 0:00:07.1]}
53. Kg1 {[%clk 0:00:13]} 53... Nd4 {[%clk 0:00:07]} 54. Bf1 {[%clk 0:00:02.6]}
54... Qe3+ {[%clk 0:00:07.3]} 55. Kg2 {[%clk 0:00:02.2]} 55... Qe4+ {[%clk
0:00:07.1]} 56. Kf2 {[%clk 0:00:02.4]} 56... Qf4+ {[%clk 0:00:06.9]} 57. Kg2
{[%clk 0:00:03]} 57... Qe4+ {[%clk 0:00:07.1]} 58. Kf2 {[%clk 0:00:03.4]} 58...
Qf4+ {[%clk 0:00:06.2]} 59. Ke1 {[%clk 0:00:03.3]} 59... Qe3+ {[%clk 0:00:03.8]}
60. Kd1 {[%clk 0:00:03.9]} 60... Qb3+ {[%clk 0:00:04.1]} 61. Kd2 {[%clk
0:00:02.7]} 61... Ne6 {[%clk 0:00:03.1]} 62. Qc3 {[%clk 0:00:02.5]} 62... Qa2+
{[%clk 0:00:03.6]} 63. Kc1 {[%clk 0:00:02.5]} 63... Kg8 {[%clk 0:00:03.9]} 64.
Nd3 {[%clk 0:00:03]} 64... g4 {[%clk 0:00:03.6]} 65. Nb2 {[%clk 0:00:03.1]}
65... Qa7 {[%clk 0:00:03.2]} 66. Bc4 {[%clk 0:00:03.4]} 66... Qg1+ {[%clk
0:00:03.6]} 67. Kc2 {[%clk 0:00:03.7]} 67... g3 {[%clk 0:00:04.2]} 68. Bxe6
{[%clk 0:00:03.5]} 68... fxe6 {[%clk 0:00:05.1]} 69. Qc8+ {[%clk 0:00:03.7]}
69... Kf7 {[%clk 0:00:05]} 70. Qc7+ {[%clk 0:00:04]} 70... Kf6 {[%clk
0:00:05.6]} 71. Qf4+ {[%clk 0:00:04.2]} 71... Kg7 {[%clk 0:00:05.7]} 72. Qe5+
{[%clk 0:00:04.6]} 72... Kf7 {[%clk 0:00:05.5]} 73. Qc7+ {[%clk 0:00:04.5]}
73... Kg8 {[%clk 0:00:04.7]} 74. Qc8+ {[%clk 0:00:04.4]} 74... Kh7 {[%clk
0:00:05.1]} 75. Qd7+ {[%clk 0:00:04.8]} 75... Kh6 {[%clk 0:00:05.1]} 76. Qd2+
{[%clk 0:00:05.3]} 76... g5 {[%clk 0:00:04.7]} 77. Nd3 {[%clk 0:00:05.6]} 77...
Qf1 {[%clk 0:00:02.6]} 78. Ne1 {[%clk 0:00:05.5]} 78... Kh5 {[%clk 0:00:02.2]}
79. Ng2 {[%clk 0:00:04.9]} 79... Qf2 {[%clk 0:00:02]} 80. b5 {[%clk 0:00:03.3]}
80... Qf3 {[%clk 0:00:01.9]} 81. Kb2 {[%clk 0:00:02.9]} 81... Kg6 {[%clk
0:00:01.7]} 82. b6 {[%clk 0:00:02.6]} 82... Kg7 {[%clk 0:00:02.6]} 83. Qc2
{[%clk 0:00:02.4]} 83... Kf7 {[%clk 0:00:02.9]} 84. Qc7+ {[%clk 0:00:02.2]}
84... Kf6 {[%clk 0:00:03.5]} 85. Qc3+ {[%clk 0:00:02.7]} 85... Qxc3+ {[%clk
0:00:01.6]} 86. Kxc3 {[%clk 0:00:03.6]} 1-0